[Event "*** Titled Tuesday Blitz"]
[Site "Chess.com"]
[Date "2018.12.04"]
[Round "10"]
[White "ruvat"]
[Black "JMatias"]
[Result "1-0"]
[WhiteElo "2301"]
[BlackElo "2330"]
[TimeControl "180+2"]
[EndTime "15:26:31 PST"]
[Termination "ruvat won by checkmate"]

1. d4 {[%clk 0:03:01.9]} 1... d5 {[%clk 0:02:59.5]} 2. c4 {[%clk 0:03:02.9]}
2... e6 {[%clk 0:03:00.1]} 3. Nf3 {[%clk 0:03:03.8]} 3... Nf6 {[%clk 0:03:01.4]}
4. g3 {[%clk 0:03:04.8]} 4... dxc4 {[%clk 0:03:02]} 5. Bg2 {[%clk 0:03:05.9]}
5... a6 {[%clk 0:03:02.7]} 6. Ne5 {[%clk 0:03:03.7]} 6... Bb4+ {[%clk 0:02:59]}
7. Nc3 {[%clk 0:03:03.7]} 7... c5 {[%clk 0:02:44.7]} 8. a3 {[%clk 0:02:58.2]}
8... Bxc3+ {[%clk 0:02:39.4]} 9. bxc3 {[%clk 0:02:58]} 9... O-O {[%clk
0:02:37.2]} 10. O-O {[%clk 0:02:47.9]} 10... Nc6 {[%clk 0:02:24.2]} 11. Bxc6
{[%clk 0:02:40.4]} 11... bxc6 {[%clk 0:02:24.7]} 12. dxc5 {[%clk 0:02:41.3]}
12... Qd5 {[%clk 0:02:19.9]} 13. Qd4 {[%clk 0:02:37.4]} 13... Nd7 {[%clk
0:02:11]} 14. Nxc4 {[%clk 0:02:29]} 14... Nxc5 {[%clk 0:02:09.3]} 15. Be3 {[%clk
0:02:17.2]} 15... Nb3 {[%clk 0:02:09.1]} 16. Qxd5 {[%clk 0:02:10.1]} 16... cxd5
{[%clk 0:02:09.8]} 17. Nb6 {[%clk 0:02:11]} 17... Rb8 {[%clk 0:02:08.5]} 18.
Rab1 {[%clk 0:02:07.7]} 18... Na5 {[%clk 0:02:07.8]} 19. Rb4 {[%clk 0:01:53.2]}
19... e5 {[%clk 0:02:04.5]} 20. Nxd5 {[%clk 0:01:47.5]} 20... Nc6 {[%clk
0:01:54.8]} 21. Rxb8 {[%clk 0:01:46.9]} 21... Nxb8 {[%clk 0:01:55.8]} 22. Rb1
{[%clk 0:01:32.9]} 22... Bh3 {[%clk 0:01:49.3]} 23. f3 {[%clk 0:01:28.9]} 23...
h5 {[%clk 0:01:47.9]} 24. Kf2 {[%clk 0:01:28.6]} 24... Nc6 {[%clk 0:01:46.8]}
25. Rb6 {[%clk 0:01:28]} 25... Rd8 {[%clk 0:01:39.3]} 26. c4 {[%clk 0:01:18.5]}
26... Na5 {[%clk 0:01:39.5]} 27. Ne7+ {[%clk 0:01:00.7]} 27... Kf8 {[%clk
0:01:32.5]} 28. Rxa6 {[%clk 0:00:51.8]} 28... Nxc4 {[%clk 0:01:32.6]} 29. Nc6
{[%clk 0:00:48.4]} 29... Re8 {[%clk 0:01:20.3]} 30. a4 {[%clk 0:00:45.5]} 30...
f6 {[%clk 0:01:09]} 31. a5 {[%clk 0:00:37.8]} 31... Rc8 {[%clk 0:00:55.7]} 32.
Nb4 {[%clk 0:00:33.3]} 32... Nb2 {[%clk 0:00:48.8]} 33. Ba7 {[%clk 0:00:22.2]}
33... Rc1 {[%clk 0:00:44.6]} 34. Rc6 {[%clk 0:00:19.2]} 34... Nd1+ {[%clk
0:00:41.2]} 35. Ke1 {[%clk 0:00:18.5]} 35... Rb1 {[%clk 0:00:41.1]} 36. Kd2
{[%clk 0:00:14.8]} 36... Nb2 {[%clk 0:00:24.4]} 37. Nd5 {[%clk 0:00:14.2]} 37...
Rd1+ {[%clk 0:00:19.8]} 38. Kc2 {[%clk 0:00:15]} 38... Rxd5 {[%clk 0:00:21.1]}
39. Bc5+ {[%clk 0:00:13]} 39... Kf7 {[%clk 0:00:17.6]} 40. Kxb2 {[%clk
0:00:13.6]} 40... Rd2+ {[%clk 0:00:19.2]} 41. Kc3 {[%clk 0:00:14.1]} 41... Rxe2
{[%clk 0:00:20.3]} 42. a6 {[%clk 0:00:14.6]} 42... Ra2 {[%clk 0:00:21.2]} 43. a7
{[%clk 0:00:15.2]} 43... Bg2 {[%clk 0:00:22.5]} 44. Rc7+ {[%clk 0:00:13.2]}
44... Ke6 {[%clk 0:00:22.4]} 45. Kb3 {[%clk 0:00:12.2]} 45... Ra6 {[%clk
0:00:21.7]} 46. Rxg7 {[%clk 0:00:11.7]} 46... Bxf3 {[%clk 0:00:22.8]} 47. Kc4
{[%clk 0:00:11.8]} 47... Ra1 {[%clk 0:00:22.3]} 48. h4 {[%clk 0:00:09.2]} 48...
Bd5+ {[%clk 0:00:22.9]} 49. Kb4 {[%clk 0:00:09.2]} 49... e4 {[%clk 0:00:23]} 50.
Re7+ {[%clk 0:00:07.2]} 50... Kf5 {[%clk 0:00:24.2]} 51. Rd7 {[%clk 0:00:08.2]}
51... Ke5 {[%clk 0:00:23.7]} 52. Be3 {[%clk 0:00:08.3]} 52... f5 {[%clk
0:00:20]} 53. Bf4+ {[%clk 0:00:09.1]} 53... Ke6 {[%clk 0:00:21.2]} 54. Rd6+
{[%clk 0:00:09.5]} 54... Ke7 {[%clk 0:00:22.2]} 55. Rxd5 {[%clk 0:00:10.6]}
55... Rxa7 {[%clk 0:00:23.9]} 56. Rxf5 {[%clk 0:00:11.5]} 56... Ra2 {[%clk
0:00:19.6]} 57. Rxh5 {[%clk 0:00:11.5]} 57... Kf6 {[%clk 0:00:19.9]} 58. Re5
{[%clk 0:00:11.8]} 58... Re2 {[%clk 0:00:18.2]} 59. h5 {[%clk 0:00:12.3]} 59...
Re1 {[%clk 0:00:18.6]} 60. h6 {[%clk 0:00:13.1]} 60... Kg6 {[%clk 0:00:20]} 61.
Kc3 {[%clk 0:00:13.2]} 61... e3 {[%clk 0:00:18.5]} 62. Rxe3 {[%clk 0:00:12.7]}
62... Rc1+ {[%clk 0:00:18.7]} 63. Kd2 {[%clk 0:00:13]} 63... Rc6 {[%clk
0:00:19]} 64. Ke2 {[%clk 0:00:13.8]} 64... Ra6 {[%clk 0:00:19.8]} 65. Kf3 {[%clk
0:00:14.8]} 65... Rf6 {[%clk 0:00:21.1]} 66. Kg4 {[%clk 0:00:15.3]} 66... Ra6
{[%clk 0:00:21.7]} 67. Rd3 {[%clk 0:00:16.2]} 67... Ra7 {[%clk 0:00:21.4]} 68.
Rd6+ {[%clk 0:00:17.1]} 68... Kh7 {[%clk 0:00:22.6]} 69. Kh5 {[%clk 0:00:17.4]}
69... Ra5+ {[%clk 0:00:23.3]} 70. Bg5 {[%clk 0:00:17.3]} 70... Ra7 {[%clk
0:00:24.1]} 71. g4 {[%clk 0:00:17.9]} 71... Rb7 {[%clk 0:00:23.8]} 72. Re6
{[%clk 0:00:18.8]} 72... Kg8 {[%clk 0:00:24]} 73. Re7 {[%clk 0:00:19]} 73... Rb6
{[%clk 0:00:25.4]} 74. h7+ {[%clk 0:00:18.7]} 74... Kh8 {[%clk 0:00:26.7]} 75.
Re5 {[%clk 0:00:12]} 75... Kxh7 {[%clk 0:00:25.5]} 76. Bf4 {[%clk 0:00:11.8]}
76... Rb7 {[%clk 0:00:24.2]} 77. g5 {[%clk 0:00:12.5]} 77... Kg7 {[%clk
0:00:24.7]} 78. Rc5 {[%clk 0:00:12.4]} 78... Rb4 {[%clk 0:00:23.3]} 79. Rc7+
{[%clk 0:00:12.9]} 79... Kg8 {[%clk 0:00:24.6]} 80. Be5 {[%clk 0:00:12.3]} 80...
Rb5 {[%clk 0:00:24.7]} 81. Bf6 {[%clk 0:00:12.7]} 81... Rb8 {[%clk 0:00:21.6]}
82. Kg6 {[%clk 0:00:12.7]} 82... Rf8 {[%clk 0:00:19.9]} 83. Rh7 {[%clk
0:00:10.5]} 83... Rxf6+ {[%clk 0:00:16.2]} 84. gxf6 {[%clk 0:00:09.9]} 84... Kf8
{[%clk 0:00:17.6]} 85. Rh8# {[%clk 0:00:10.8]} 1-0

[Event "*** Titled Tuesday Blitz"]
[Site "Chess.com"]
[Date "2018.12.04"]
[Round "10"]
[White "Parhamov"]
[Black "Thjop"]
[Result "0-1"]
[WhiteElo "2832"]
[BlackElo "2700"]
[TimeControl "180+2"]
[EndTime "15:28:02 PST"]
[Termination "Thjop won by resignation"]

1. h3 {[%clk 0:03:01.7]} 1... e5 {[%clk 0:02:59.5]} 2. a3 {[%clk 0:03:02.5]}
2... d5 {[%clk 0:02:59.6]} 3. e3 {[%clk 0:03:03.7]} 3... Nf6 {[%clk 0:02:51]} 4.
g4 {[%clk 0:03:04.1]} 4... g6 {[%clk 0:02:50.2]} 5. Bg2 {[%clk 0:03:04.9]} 5...
Bg7 {[%clk 0:02:50.5]} 6. Ne2 {[%clk 0:03:06.1]} 6... h5 {[%clk 0:02:50]} 7. g5
{[%clk 0:03:06.9]} 7... Ne4 {[%clk 0:02:50.6]} 8. h4 {[%clk 0:03:08.1]} 8... O-O
{[%clk 0:02:45.4]} 9. d3 {[%clk 0:03:09.1]} 9... Nc5 {[%clk 0:02:45.6]} 10. b4
{[%clk 0:03:09.7]} 10... Ne6 {[%clk 0:02:44.2]} 11. Bb2 {[%clk 0:03:09.9]} 11...
c6 {[%clk 0:02:37.8]} 12. c4 {[%clk 0:03:09.9]} 12... a5 {[%clk 0:02:36.9]} 13.
Nd2 {[%clk 0:03:07.8]} 13... Na6 {[%clk 0:02:34.8]} 14. Qb3 {[%clk 0:02:58.8]}
14... Nec7 {[%clk 0:02:13.2]} 15. O-O {[%clk 0:02:41.5]} 15... Bg4 {[%clk
0:02:09.8]} 16. f3 {[%clk 0:02:41.3]} 16... Be6 {[%clk 0:02:09.1]} 17. f4 {[%clk
0:02:42.7]} 17... dxc4 {[%clk 0:02:03.3]} 18. Nxc4 {[%clk 0:02:42.9]} 18... b5
{[%clk 0:02:02.7]} 19. fxe5 {[%clk 0:02:35.5]} 19... bxc4 {[%clk 0:01:58.4]} 20.
dxc4 {[%clk 0:02:36.4]} 20... Rb8 {[%clk 0:01:46.7]} 21. Nd4 {[%clk 0:02:36.7]}
21... Bd7 {[%clk 0:01:26.6]} 22. Rad1 {[%clk 0:02:36.5]} 22... Qe8 {[%clk
0:01:24.4]} 23. Qc3 {[%clk 0:02:18.4]} 23... axb4 {[%clk 0:01:12.3]} 24. axb4
{[%clk 0:02:19.3]} 24... Bxe5 {[%clk 0:01:09.7]} 25. Ba3 {[%clk 0:02:20.1]}
25... Ne6 {[%clk 0:01:02.8]} 26. b5 {[%clk 0:02:19.4]} 26... cxb5 {[%clk
0:00:42.3]} 27. Bxf8 {[%clk 0:02:19.7]} 27... Nxf8 {[%clk 0:00:42.8]} 28. Qa5
{[%clk 0:02:16.4]} 28... Nc5 {[%clk 0:00:34.6]} 29. cxb5 {[%clk 0:02:13]} 29...
Bxb5 {[%clk 0:00:23.1]} 30. Nxb5 {[%clk 0:02:03.3]} 30... Rxb5 {[%clk 0:00:25]}
31. Qd8 {[%clk 0:02:03.5]} 31... Qxd8 {[%clk 0:00:24.3]} 32. Rxd8 {[%clk
0:02:03.6]} 32... Kg7 {[%clk 0:00:23.2]} 33. Rd5 {[%clk 0:02:01.2]} 33... Bg3
{[%clk 0:00:21.1]} 34. Bh3 {[%clk 0:01:55]} 34... Bxh4 {[%clk 0:00:20.4]} 35.
Rc1 {[%clk 0:01:56.1]} 35... Nb3 {[%clk 0:00:19.6]} 36. Rxb5 {[%clk 0:01:26.5]}
36... Nxc1 {[%clk 0:00:20.6]} 37. Bf1 {[%clk 0:01:28.2]} 37... Ne6 {[%clk
0:00:18]} 38. Rb1 {[%clk 0:01:28.9]} 38... Na2 {[%clk 0:00:19]} 39. Rb3 {[%clk
0:01:23.7]} 39... Bxg5 {[%clk 0:00:18.9]} 40. Bc4 {[%clk 0:01:25]} 40... Bxe3+
{[%clk 0:00:19.5]} 41. Rxe3 {[%clk 0:01:25.3]} 41... Nb4 {[%clk 0:00:19.7]} 42.
Kf2 {[%clk 0:01:22.5]} 42... Nc6 {[%clk 0:00:20.5]} 43. Kf3 {[%clk 0:01:21.7]}
43... Ncd4+ {[%clk 0:00:20.9]} 44. Ke4 {[%clk 0:01:22.6]} 44... Nf5 {[%clk
0:00:22.2]} 45. Rc3 {[%clk 0:01:19.8]} 45... Ng5+ {[%clk 0:00:22.5]} 46. Ke5
{[%clk 0:01:17.6]} 46... f6+ {[%clk 0:00:21]} 47. Kf4 {[%clk 0:01:14.3]} 47...
h4 {[%clk 0:00:20.4]} 48. Bd5 {[%clk 0:01:13]} 48... h3 {[%clk 0:00:21.4]} 49.
Rc7+ {[%clk 0:01:13.7]} 49... Kh6 {[%clk 0:00:22.5]} 50. Rc6 {[%clk 0:01:13.3]}
50... Kg7 {[%clk 0:00:22.5]} 51. Rc7+ {[%clk 0:01:14.7]} 51... Kh6 {[%clk
0:00:23.3]} 52. Rc6 {[%clk 0:01:16.1]} 52... Kg7 {[%clk 0:00:24.6]} 53. Ra6
{[%clk 0:01:14.4]} 53... Nh4 {[%clk 0:00:20.4]} 54. Ra7+ {[%clk 0:01:08.3]}
54... Kh6 {[%clk 0:00:21.5]} 55. Ra8 {[%clk 0:01:01.3]} 55... Kg7 {[%clk
0:00:21.2]} 56. Rg8+ {[%clk 0:00:59.8]} 56... Kh7 {[%clk 0:00:22.2]} 57. Re8
{[%clk 0:01:01]} 57... Ng2+ {[%clk 0:00:22.5]} 58. Kg3 {[%clk 0:00:58.5]} 58...
Kg7 {[%clk 0:00:19.5]} 59. Re7+ {[%clk 0:00:45]} 59... Kh6 {[%clk 0:00:19.9]}
60. Re2 {[%clk 0:00:44.4]} 60... f5 {[%clk 0:00:20.5]} 61. Re7 {[%clk
0:00:41.3]} 61... Kh5 {[%clk 0:00:17.9]} 62. Re8 {[%clk 0:00:28.8]} 62... Kh6
{[%clk 0:00:14.2]} 63. Re2 {[%clk 0:00:21.5]} 63... f4+ {[%clk 0:00:14.9]} 64.
Kh2 {[%clk 0:00:20.4]} 64... Ne3 {[%clk 0:00:15.7]} 65. Bc6 {[%clk 0:00:20.9]}
65... Ng4+ {[%clk 0:00:16.8]} 66. Kh1 {[%clk 0:00:21.1]} 66... Kh5 {[%clk
0:00:17.1]} 67. Re8 {[%clk 0:00:21.2]} 67... Kh4 {[%clk 0:00:18]} 68. Rg8 {[%clk
0:00:20.9]} 68... Kg3 {[%clk 0:00:18]} 69. Rxg6 {[%clk 0:00:21.1]} 69... Nf2+
{[%clk 0:00:17.2]} 70. Kg1 {[%clk 0:00:21.9]} 70... h2+ {[%clk 0:00:18.6]} 71.
Kf1 {[%clk 0:00:23.3]} 71... Nh3 {[%clk 0:00:19.5]} 72. Bh1 {[%clk 0:00:20]}
72... f3 {[%clk 0:00:20.6]} 73. Rg8 {[%clk 0:00:21.3]} 73... Kf4 {[%clk
0:00:21.4]} 74. Rf8+ {[%clk 0:00:19.5]} 74... Kg3 {[%clk 0:00:22.6]} 75. Rf5
{[%clk 0:00:20.9]} 75... Kg4 {[%clk 0:00:23.3]} 76. Rf8 {[%clk 0:00:21]} 76...
Nf4 {[%clk 0:00:22.1]} 77. Kf2 {[%clk 0:00:19.8]} 77... Nfh3+ {[%clk 0:00:22.6]}
78. Ke3 {[%clk 0:00:20.9]} 78... Kg3 {[%clk 0:00:20.9]} 79. Rg8 {[%clk
0:00:21.8]} 79... Kh4 {[%clk 0:00:20.3]} 80. Rg7 {[%clk 0:00:21.2]} 80... f2
{[%clk 0:00:21.5]} 81. Ke2 {[%clk 0:00:20.6]} 81... Kg3 {[%clk 0:00:22.1]} 82.
Kf1 {[%clk 0:00:21.3]} 82... Kg4 {[%clk 0:00:22.5]} 83. Rg8 {[%clk 0:00:20.7]}
83... Kg3 {[%clk 0:00:22.4]} 84. Rf8 {[%clk 0:00:21.9]} 84... Nf4 {[%clk
0:00:21.4]} 85. Rg8 {[%clk 0:00:22.8]} 85... Nh3 {[%clk 0:00:22.6]} 86. Bb7
{[%clk 0:00:20.2]} 86... Kg4 {[%clk 0:00:20.8]} 87. Bg2 {[%clk 0:00:20.1]} 87...
Kg3 {[%clk 0:00:21.3]} 88. Bh1 {[%clk 0:00:20.8]} 88... Kg4 {[%clk 0:00:21]} 89.
Ra8 {[%clk 0:00:20.8]} 89... Kg3 {[%clk 0:00:20]} 90. Ra3+ {[%clk 0:00:20.8]}
90... Kg4 {[%clk 0:00:21]} 91. Bb7 {[%clk 0:00:21.4]} 91... Kf4 {[%clk
0:00:17.4]} 92. Bh1 {[%clk 0:00:14.5]} 92... Kg4 {[%clk 0:00:18]} 93. Bg2 {[%clk
0:00:15.6]} 93... Kh4 {[%clk 0:00:17.4]} 94. Bh1 {[%clk 0:00:11.6]} 94... Kg4
{[%clk 0:00:18.2]} 95. Kg2 {[%clk 0:00:10.6]} 95... Ne4 {[%clk 0:00:15.1]} 96.
Ra4 {[%clk 0:00:03.3]} 96... Nf4+ {[%clk 0:00:15.3]} 97. Kf1 {[%clk 0:00:04.6]}
97... Ng3+ {[%clk 0:00:15.2]} 98. Kxf2 {[%clk 0:00:03.5]} 98... Nxh1+ {[%clk
0:00:16.2]} 99. Ke3 {[%clk 0:00:03.8]} 99... Ng3 {[%clk 0:00:15.3]} 100. Rxf4+
{[%clk 0:00:05.2]} 100... Kg5 {[%clk 0:00:15.8]} 101. Rf3 {[%clk 0:00:05.9]}
101... Nf5+ {[%clk 0:00:13.5]} 0-1